bitfinex-derivatives/quotes_ETHF0:USTF0_20251213
["timestamp","ask_amount","ask_price","bid_price","bid_amount"]
[1765632941739,1.5354,3105.4,3105.3,1.635]
[1765632942335,0.7644,3105.4,3105.3,1.635]
[1765632942739,1.5354,3105.4,3105.3,1.635]
[1765632943432,0.00335366,3105.7,3105.6,1.474]
[1765632943632,1.53875366,3105.7,3105.6,1.79214374]
[1765632944033,1.53875366,3105.7,3105.6,1.79177502]
[1765632944534,1.53875366,3105.7,3105.6,2.53807502]
[1765632944737,0.00335366,3105.7,3105.6,2.53807502]
[1765632945335,1.5354,3106.0,3105.9,1.474]
[1765632945539,1.9984,3106.0,3105.9,1.79177502]
[1765632945738,1.9984,3106.0,3105.9,1.06407502]
[1765632945938,1.9984,3106.0,3105.9,2.53807502]
[1765632946243,0.76707955,3106.0,3105.9,3.60215004]
[1765632946445,0.00267955,3106.0,3105.9,2.53807502]
[1765632947531,0.76707955,3106.0,3105.9,2.53807502]
[1765632947938,0.00267955,3106.0,3105.9,2.53807502]
[1765632948349,0.00267955,3106.0,3105.9,3.60215004]
[1765632949650,0.00267955,3106.0,3105.9,2.53807502]
[1765632949947,0.00267955,3106.0,3105.9,2.53772873]
[1765632950143,1.53807955,3106.0,3105.9,2.53772873]
[1765632950450,1.5354,3105.9,3105.8,0.16097]
[1765632950650,1.5354,3105.9,3105.8,0.88867]
[1765632951550,1.5354,3105.9,3105.8,1.63497]
[1765632952860,1.5354,3105.9,3105.8,0.88867]
[1765632956960,1.5354,3105.9,3105.7,1.06372873]
[1765632957162,1.5354,3105.9,3105.6,3.2078]
[1765632957163,1.5184,3105.7,3105.6,3.2078]
[1765632958264,1.5184,3105.7,3105.6,3.9283]
[1765632959361,1.5184,3105.7,3105.6,4.6481]
[1765632959568,1.5184,3105.7,3105.6,3.9283]
[1765632960764,1.5184,3105.7,3105.6,4.99202873]
[1765632961962,2.58212873,3105.7,3105.6,3.2078]
[1765632962465,1.98407955,3106.0,3105.9,1.4403]
[1765632962759,1.98407955,3106.0,3105.9,1.78422873]
[1765632963149,1.98407955,3106.0,3105.9,2.50402873]
[1765632963560,1.98407955,3106.0,3105.9,1.4403]
[1765632963765,1.98407955,3106.0,3105.9,0.7205]
[1765632963960,1.5184,3105.8,3105.7,1.78422873]
[1765632964264,1.5184,3105.8,3105.7,0.7205]
[1765632964858,1.5184,3105.8,3105.7,1.4403]
[1765632965058,0.7756,3105.8,3105.7,1.4403]
[1765632966068,1.24127955,3106.0,3105.9,1.4403]
[1765632966267,1.98407955,3106.0,3105.9,1.4403]
[1765632968570,1.98407955,3106.0,3105.9,0.7205]
[1765632970371,1.98407955,3106.0,3105.9,1.4403]
[1765632975875,1.5184,3105.8,3105.7,1.78422873]
[1765632976074,1.5184,3105.8,3105.7,2.50402873]
[1765632976678,0.7756,3105.8,3105.7,2.50402873]
[1765632977883,1.5184,3105.8,3105.7,1.78422873]
[1765632978078,0.77827955,3106.0,3105.9,1.4403]
[1765632978280,1.97417955,3106.0,3105.9,1.4403]
[1765632978578,1.52107955,3106.0,3105.9,1.4403]
[1765632978770,1.52107955,3106.0,3105.9,2.50402873]
[1765632979679,0.77827955,3106.0,3105.9,2.50402873]
[1765632979981,0.00267955,3106.0,3105.9,2.50402873]
[1765632981274,0.00267955,3106.0,3105.9,3.56775746]
[1765632982673,0.00267955,3106.0,3105.9,3.72872746]
[1765632982879,1.4474,3106.8,3106.7,1.4846]
[1765632983176,0.7032,3106.8,3106.7,1.4846]
[1765632983374,1.8823,3107.0,3106.9,1.4846]
[1765632983775,1.88629459,3107.0,3106.9,1.4846]
[1765632984571,1.88629459,3107.0,3106.9,0.716]
[1765632984971,1.88629459,3107.0,3106.9,1.4846]
[1765632985371,0.7445,3106.7,3106.6,2.46132873]
[1765632985583,1.4552,3106.7,3106.6,1.3976]
[1765632985979,1.4552,3106.7,3106.6,0.698]
[1765632986382,0.43889459,3107.0,3106.9,0.698]
[1765632986580,1.89409459,3107.0,3106.9,1.3976]
[1765632986985,1.89409459,3107.0,3106.9,0.698]
[1765632990086,1.885,3106.5,3106.4,3.21263254]
[1765632990286,2.94847368,3106.5,3106.4,3.21263254]
[1765632991888,1.885,3106.5,3106.4,3.21263254]
[1765632992581,1.0771,3105.9,3105.8,3.9058]
[1765632993488,1.0771,3105.9,3105.8,4.6054]
[1765632993883,0.5386,3105.9,3105.8,4.6054]
[1765632994491,1.0771,3105.9,3105.8,4.6054]
[1765632994682,1.0771,3105.9,3105.8,1.3976]
[1765632996495,0.5386,3105.9,3105.8,1.3976]
[1765632996681,1.0771,3105.9,3105.8,1.3976]
[1765632998986,5.34837368,3106.1,3106.0,1.8497]
[1765632999289,4.2849,3106.1,3106.0,1.8497]
[1765632999684,4.2849,3106.1,3106.0,0.4521]
[1765632999685,5.34837368,3106.1,3106.0,0.4521]
[1765633000197,5.34837368,3106.1,3106.0,1.1501]
[1765633001400,5.34837368,3106.1,3106.0,0.4521]
[1765633001700,5.34837368,3106.1,3106.0,1.1501]
[1765633002996,4.2849,3106.1,3106.0,1.1501]
[1765633003204,4.2849,3106.1,3106.0,1.8497]
[1765633004205,3.7464,3106.1,3106.0,1.8497]
[1765633004392,4.2849,3106.1,3106.0,1.8497]
[1765633005496,4.2849,3106.1,3106.0,1.1501]
[1765633005704,1.0771,3105.6,3105.5,0.00483254]
[1765633006006,2.14106964,3105.6,3105.5,0.45693254]
[1765633006392,2.14106964,3105.6,3105.5,0.00483254]
[1765633007599,1.0771,3105.1,3105.0,0.3111]
[1765633007798,0.5386,3105.1,3105.0,1.7087]
[1765633007997,3.7464,3105.2,3105.1,1.3976]
[1765633008198,4.2849,3105.2,3105.1,1.3976]
[1765633011102,4.2849,3105.2,3105.0,0.3111]
[1765633011103,1.0771,3105.1,3105.0,0.3111]
[1765633011302,1.0771,3105.1,3105.0,1.7087]
[1765633012404,0.5386,3105.1,3105.0,1.7087]
[1765633013603,1.0771,3105.1,3105.0,1.0091]
[1765633013803,1.0771,3105.1,3105.0,1.7087]
[1765633014005,0.5386,3105.1,3105.0,1.7087]
[1765633017199,3.749,3105.2,3105.1,1.5055]
[1765633017707,3.2078,3105.2,3105.1,1.5055]
[1765633018003,3.2078,3105.6,3105.5,1.9299]
[1765633018393,3.749,3105.6,3105.5,1.9299]
[1765633020507,3.2078,3105.6,3105.5,1.9299]
[1765633021610,3.749,3106.0,3105.9,0.7626]
[1765633021905,4.2888,3106.0,3105.9,1.5055]
[1765633022405,3.2078,3106.0,3105.9,1.5055]
[1765633022904,3.749,3106.0,3105.9,1.5055]
[1765633024110,3.2078,3106.0,3105.9,1.5055]
[1765633026207,4.2888,3106.0,3105.9,0.7429]
[1765633026411,4.2888,3106.0,3105.9,1.5055]
[1765633026812,4.2888,3106.0,3105.5,44.59319]
[1765633027012,4.2888,3106.0,3105.5,3.79319]
[1765633027211,4.2888,3106.0,3105.9,0.7429]
[1765633027614,1.081,3105.2,3105.1,4.7133]
[1765633028612,0.5412,3105.2,3105.1,4.7133]
[1765633028914,1.081,3105.2,3105.1,4.7133]
[1765633029216,0.5412,3105.2,3105.1,4.7133]
[1765633029514,4.2888,3105.2,3105.1,1.5055]
[1765633030311,3.749,3105.2,3105.1,1.5055]
[1765633031012,4.2888,3105.2,3105.1,1.5055]
[1765633036422,3.749,3105.2,3105.1,1.5055]
[1765633036821,0.5412,3105.2,3105.1,1.5055]
[1765633037122,3.749,3105.2,3105.1,1.5055]
[1765633038207,3.2078,3105.2,3105.1,1.5055]
[1765633039022,1.081,3105.6,3105.5,0.4244]
[1765633039518,1.081,3105.6,3105.0,1.8166]
[1765633039519,0.5412,3105.1,3105.0,1.8166]
[1765633041125,1.081,3105.1,3105.0,1.8166]
[1765633041826,0.5412,3105.1,3105.0,1.8166]
[1765633042322,1.0809,3105.1,3105.0,1.8166]
[1765633043323,0.5412,3105.1,3105.0,1.8166]
[1765633045621,1.0809,3105.1,3105.0,1.054]
[1765633045819,1.0809,3105.1,3105.0,1.7528]
[1765633046325,0.5412,3105.1,3105.0,1.7528]
[1765633050029,3.747,3105.2,3105.1,1.4354]
[1765633056333,4.2862,3105.2,3105.1,1.4354]
[1765633058140,3.747,3105.2,3105.1,1.4354]
[1765633060442,1.0784,3105.1,3105.0,1.0477]
[1765633061942,1.0784,3105.1,3105.0,1.7465]
[1765633062746,1.0784,3105.1,3105.0,1.0477]
[1765633063239,1.0784,3105.1,3105.0,0.3111]
[1765633064335,1.0784,3105.0,3104.9,0.00327397]
[1765633065844,2.14339136,3105.0,3104.9,0.00327397]
[1765633066845,2.14339136,3105.0,3104.9,0.73987397]
[1765633067453,2.14339136,3105.0,3104.9,0.00327397]
[1765633068750,2.14339136,3105.0,3104.9,0.73987397]
[1765633068952,2.14339136,3105.0,3104.9,1.43867397]
[1765633069355,1.0784,3104.9,3104.8,0.00483254]
[1765633069649,1.0784,3104.9,3104.0,5.0676]
[1765633069650,1.0688,3104.1,3104.0,5.0676]
[1765633069854,2.13379136,3104.1,3104.0,5.0676]
[1765633070247,2.13674355,3104.1,3104.0,5.07047662]
[1765633071252,1.07175219,3104.1,3104.0,5.07047662]
[1765633071451,0.53735219,3104.1,3104.0,5.07047662]
[1765633071954,1.07175219,3104.1,3104.0,5.07047662]
[1765633074451,2.13674355,3104.1,3104.0,4.37167662]
[1765633074652,2.13674355,3104.1,3104.0,5.07047662]
[1765633075860,0.53735219,3104.1,3104.0,5.07047662]
[1765633076762,1.07225219,3104.1,3104.0,4.37167662]
[1765633076966,1.07225219,3104.1,3104.0,5.11827662]
[1765633077166,0.53735219,3104.1,3104.0,5.11827662]
[1765633077567,1.07225219,3104.1,3104.0,4.37167662]
[1765633077869,1.07225219,3104.1,3104.0,3.63507662]
[1765633078065,4.28005219,3104.1,3104.0,0.42727662]
[1765633078268,4.28005219,3104.1,3104.0,0.00287662]
[1765633078568,4.28005219,3104.1,3104.0,0.43057662]
[1765633078965,1.4835,3103.8,3103.7,0.00483254]
[1765633079166,2.54849136,3103.8,3103.7,0.00483254]
[1765633079971,2.54849136,3103.8,3103.7,0.00789129]
[1765633082371,3.61348272,3103.8,3103.7,0.00789129]
[1765633082575,1.4835,3103.2,3103.1,4.6661]
[1765633083074,1.4835,3103.2,3103.1,1.4583]
[1765633083774,1.4835,3103.2,3103.1,1.46210622]
[1765633088677,1.4835,3103.2,3103.1,0.71550622]
[1765633089179,2.54849136,3103.2,3103.1,0.71550622]
[1765633089477,2.54849136,3103.2,3103.1,1.46210622]
[1765633090768,2.54849136,3103.2,3103.1,0.00380622]
[1765633090974,2.54849136,3103.2,3103.1,0.71550622]
[1765633092179,2.54956236,3103.2,3103.1,0.71550622]
[1765633092874,2.54956236,3103.2,3102.5,0.70027235]
[1765633092875,1.4835,3102.3,3102.2,0.7117]
[1765633093074,2.54956236,3102.3,3102.2,0.7117]
[1765633093380,2.54956236,3102.3,3102.2,1.4583]
[1765633093678,0.7358,3102.3,3102.2,1.4583]
[1765633093880,0.7358,3102.3,3102.2,1.46176513]
[1765633094376,0.7358,3102.5,3102.4,1.4583]
[1765633094680,1.4835,3102.5,3102.4,0.7117]
[1765633095376,1.4835,3102.3,3102.2,1.46176513]
[1765633096576,1.4835,3102.3,3102.2,0.71516513]
[1765633096776,1.4835,3102.3,3102.2,0.00346513]
[1765633098972,1.4835,3101.9,3101.8,3.2078]
[1765633099177,1.4835,3101.6,3101.5,1.1394]
[1765633099579,2.54956236,3101.6,3101.5,1.1394]
[1765633100081,2.55331818,3101.6,3101.5,0.43019287]
[1765633100381,2.55331818,3101.6,3101.5,0.00249287]
[1765633101376,1.48725582,3101.6,3101.5,0.00249287]
[1765633103688,1.48725582,3101.6,3101.5,1.15069287]
[1765633103990,0.73955582,3101.6,3101.5,1.85949287]
[1765633104181,1.46445582,3101.6,3101.5,1.85949287]
[1765633104993,2.53051818,3101.6,3101.5,0.43899287]
[1765633105289,2.53051818,3101.6,3101.5,1.14829287]
[1765633105489,1.46445582,3101.6,3101.5,1.90899287]
[1765633105690,0.73955582,3101.6,3101.5,1.90899287]
[1765633106081,1.47635582,3101.6,3101.5,1.90899287]
[1765633107287,1.47635582,3101.6,3101.5,1.14829287]
[1765633107786,1.47635582,3101.6,3101.5,1.90899287]
[1765633110480,0.73955582,3101.6,3101.5,1.90899287]
[1765633114287,0.00375582,3101.6,3101.5,1.90899287]
[1765633114684,0.00375582,3101.6,3101.5,2.97505523]
[1765633114885,3.2078,3101.9,3101.8,1.47]
[1765633115092,3.2078,3101.9,3101.8,2.53606236]
[1765633115693,3.2078,3101.9,3101.8,1.47]
[1765633115994,3.21035166,3101.9,3101.8,1.47]
[1765633116591,3.21035166,3101.9,3101.8,42.27]
[1765633116790,0.00255166,3101.9,3101.8,42.27]
[1765633118989,3.2078,3102.4,3102.3,1.47]
[1765633120098,3.21050712,3102.4,3102.3,1.47]
[1765633122496,3.21050712,3102.4,3102.3,2.53606236]
[1765633122800,3.21050712,3102.4,3102.3,1.47]
[1765633123102,3.21050712,3102.4,3102.3,2.53606236]
[1765633123999,0.7707,3102.2,3102.1,1.06606236]
[1765633124200,1.5075,3102.2,3102.1,2.53606236]
[1765633124601,0.7707,3102.2,3102.1,2.53606236]
[1765633124797,3.98120712,3102.4,3102.3,1.47]
[1765633125704,4.71800712,3102.4,3102.3,1.47]
[1765633127196,3.21050712,3102.4,3102.3,1.47]
[1765633127398,0.77340712,3102.4,3102.3,2.53606236]
[1765633127704,1.51020712,3102.4,3102.3,2.53626847]
[1765633127898,1.51020712,3102.4,3102.3,1.47]
[1765633128205,0.77340712,3102.4,3102.3,1.47]
[1765633129197,0.00270712,3102.4,3102.3,1.47]
[1765633133797,0.00483254,3102.6,3102.5,1.913]
[1765633134002,0.00483254,3102.6,3102.5,2.97928712]
[1765633134800,0.00832295,3102.6,3102.5,2.97928712]
[1765633135812,0.00832295,3102.6,3102.5,6.18708712]
[1765633144015,0.7049,3103.2,3103.1,1.4524]
[1765633144216,1.4347,3103.2,3103.1,1.4524]
[1765633144411,1.4347,3103.1,3103.0,1.1885]
[1765633144613,1.4347,3103.1,3103.0,0.4353]
[1765633145117,1.43832411,3103.1,3103.0,0.4353]
[1765633145914,1.4347,3102.8,3102.7,0.00483254]
[1765633147116,1.4347,3102.8,3102.7,0.75803254]
[1765633147320,1.4347,3102.8,3102.7,0.00483254]
[1765633148910,0.7049,3102.8,3102.7,1.45723254]
[1765633149115,1.4347,3102.8,3102.7,1.45723254]
[1765633149517,0.7049,3102.8,3102.7,1.45723254]
[1765633149717,4.64612411,3103.1,3103.0,1.1885]
[1765633149916,1.4347,3102.8,3102.7,0.75803254]
[1765633150111,1.4347,3102.8,3102.7,1.45723254]
[1765633150318,1.4347,3102.8,3102.7,0.00483254]
[1765633151421,1.4347,3102.8,3102.7,0.75803254]
[1765633151618,1.4347,3102.8,3102.7,1.45723254]
[1765633153126,1.4347,3102.8,3102.7,0.75803254]
[1765633153328,1.4347,3102.8,3102.7,0.00483254]
[1765633160348,1.4347,3102.8,3102.7,0.75803254]
[1765633161844,1.4347,3102.8,3102.7,0.00483254]
[1765633163545,2.50125372,3102.8,3102.7,0.00483254]
[1765633165146,1.4347,3102.8,3102.7,0.00483254]
[1765633167049,2.50125372,3102.8,3102.7,0.00483254]
[1765633167850,1.4347,3102.8,3102.7,0.00483254]
[1765633169545,1.4347,3102.8,3102.7,0.71433254]
[1765633170045,1.4347,3102.8,3102.7,0.00483254]
[1765633172251,2.50125372,3102.8,3102.7,0.00483254]
[1765633174951,1.4347,3102.8,3102.7,0.00483254]
[1765633175157,1.4347,3102.8,3102.7,1.44303254]
[1765633175458,1.4347,3102.8,3102.7,0.00483254]
[1765633176153,1.4347,3102.8,3102.7,0.71433254]
[1765633176350,1.4347,3102.8,3102.7,1.44303254]
[1765633181362,3.2078,3103.0,3102.9,0.7095]
[1765633181562,4.6725,3103.0,3102.9,1.4382]
[1765633181963,4.6725,3103.0,3102.9,0.7095]
[1765633183869,0.7308,3102.8,3102.7,0.00483254]
[1765633184062,1.4647,3102.8,3102.7,1.44303254]
[1765633185570,0.7308,3102.8,3102.7,1.44303254]
[1765633185970,1.4647,3102.8,3102.7,1.44303254]
[1765633186272,0.7308,3102.8,3102.7,1.44303254]
[1765633186570,4.6725,3103.0,3102.9,1.4382]
[1765633186874,1.4647,3102.8,3102.7,1.44303254]
[1765633188672,0.7308,3102.8,3102.7,1.44303254]
[1765633189070,4.6725,3103.0,3102.9,1.4382]
[1765633189369,3.9386,3103.0,3102.9,1.4382]
[1765633189772,3.2078,3103.0,3102.9,1.4382]
[1765633190074,3.2078,3103.0,3102.9,2.50405487]
[1765633190968,3.9386,3103.0,3102.9,2.50405487]
[1765633191372,4.6725,3103.0,3102.9,2.50405487]
[1765633192176,4.6725,3103.0,3102.9,0.7095]
[1765633192677,1.4647,3102.8,3102.7,1.60416254]
[1765633196074,1.4647,3102.8,3102.7,0.87546254]
[1765633196474,1.4647,3102.8,3102.7,1.63986254]
[1765633198574,0.7308,3102.8,3102.7,1.63986254]
[1765633199377,1.4955,3102.8,3102.7,0.00483254]
[1765633199675,2.56135487,3102.8,3102.7,0.00483254]
[1765633200779,2.56199758,3102.8,3102.7,0.00483254]
[1765633210389,2.56199758,3102.8,3102.7,0.70783254]
[1765633210591,1.4955,3102.8,3102.7,1.47223254]
[1765633211085,4.7013,3103.0,3102.9,1.4674]
[1765633211278,3.9366,3103.0,3102.9,2.53389758]
[1765633211879,3.2078,3103.0,3102.9,2.53389758]
[1765633213886,0.00362411,3103.1,3102.9,2.53389758]
[1765633213887,0.00362411,3103.1,3103.0,1.8913]
[1765633214088,0.00483254,3103.4,3103.3,1.4674]
[1765633214385,0.00483254,3103.4,3103.3,2.53389758]
[1765633214386,1e-08,3103.4,3103.3,2.53389758]
[1765633215288,0.00315058,3103.4,3103.3,2.53389758]
[1765633215689,3.2078,3103.9,3103.8,1.4674]
[1765633215886,3.2078,3103.9,3103.8,3.60039516]
[1765633216084,3.2078,3103.9,3103.8,2.53389758]
[1765633216289,3.2078,3103.9,3103.8,3.60039516]
[1765633216684,4.7013,3104.3,3104.2,1.4674]
[1765633216889,4.70363648,3104.3,3104.2,0.703]
[1765633217090,4.70363648,3104.3,3104.2,1.4674]
[1765633217990,4.70363648,3104.3,3104.2,0.703]
[1765633218189,3.21013648,3104.3,3104.2,1.4674]
[1765633218384,3.93893648,3104.3,3104.2,1.4674]
[1765633219296,4.70363648,3104.3,3104.2,1.4674]
[1765633219692,3.93893648,3104.3,3104.2,2.53389758]
[1765633220089,4.70363648,3104.3,3104.2,2.53389758]
[1765633220489,3.93893648,3104.3,3104.2,2.53389758]
[1765633221892,4.70363648,3104.3,3104.2,2.53389758]
[1765633222296,4.70363648,3104.3,3104.2,1.4674]
[1765633222696,4.70363648,3104.3,3104.2,0.703]
[1765633223088,1.4921,3104.0,3103.9,0.71703254]
[1765633223292,1.4921,3104.0,3103.9,0.00483254]
[1765633223293,2.55859758,3104.0,3103.9,0.00483254]
[1765633226204,2.55859758,3104.0,3103.9,0.73743254]
[1765633226399,2.55859758,3104.0,3103.9,0.00483254]
[1765633227403,2.77369758,3104.0,3103.9,0.00483254]
[1765633230103,2.77369758,3104.0,3103.9,3.254e-05]
[1765633236505,2.77305824,3104.0,3103.9,3.254e-05]
[1765633237106,1.4508,3103.9,3103.3,1.06585824]
[1765633237308,4.6586,3103.7,3103.6,1.5031]
[1765633238312,4.6586,3103.7,3103.6,1.50687992]
[1765633240315,4.6586,3103.7,3103.6,0.00377992]
[1765633240906,3.2078,3103.7,3103.6,0.00377992]
[1765633241108,4.6586,3103.7,3103.6,1.50687992]
[1765633241318,3.917,3103.7,3103.6,1.50687992]
[1765633243718,3.2078,3103.7,3103.6,2.57273816]
[1765633243923,1.4508,3104.1,3104.0,1.9345]
[1765633244719,3.2078,3104.2,3104.1,1.5031]
[1765633248622,0.00233648,3104.3,3104.2,1.5031]
[1765633248822,0.00233648,3104.3,3104.2,2.56895824]
[1765633249222,0.00233648,3104.3,3104.2,3.63481648]
[1765633249426,3.917,3105.0,3104.9,1.5031]
[1765633249725,3.917,3105.0,3104.9,2.56895824]
[1765633250326,3.91965591,3105.0,3104.9,2.56895824]
[1765633250723,3.21045591,3105.0,3104.9,2.56895824]
[1765633251024,4.66125591,3105.0,3104.9,1.79845824]
[1765633251927,1.4508,3104.6,3104.5,41.2314]
[1765633252420,0.7092,3104.6,3104.5,1.9345]
[1765633254229,3.21045591,3105.0,3104.5,1.9345]
[1765633254434,0.7092,3104.7,3104.6,2.56800115]
[1765633254726,4.73705591,3105.0,3104.9,0.7248]
[1765633255231,4.73705591,3105.0,3104.9,1.466]
[1765633256025,3.21045591,3105.0,3104.9,1.466]
[1765633256229,0.77273254,3105.3,3105.2,1.466]
[1765633256424,1.5266,3105.1,3105.0,2.23980115]
[1765633256623,0.7679,3105.1,3105.0,2.98100115]
[1765633257128,0.00483254,3105.3,3105.0,2.98100115]
[1765633257129,0.00483254,3105.3,3105.2,1.466]
[1765633257328,2.84764284,3105.4,3105.3,2.53090115]
[1765633257627,2.85031739,3105.4,3105.3,2.53090115]
[1765633257930,0.00267455,3105.4,3105.3,2.53090115]
[1765633258131,3.2078,3105.8,3105.7,1.466]
[1765633258332,3.2078,3105.8,3105.7,2.53090115]
[1765633258925,1e-08,3106.1,3106.0,1.9161]
[1765633259229,0.00236921,3106.1,3106.0,6.19294633]
[1765633260530,4.7344,3106.9,3106.8,0.7248]
[1765633261320,0.7679,3106.6,3106.5,1.92093254]
[1765633261524,1.5266,3106.6,3106.5,1.17973254]
[1765633262831,1.5266,3106.6,3106.5,0.00483254]
[1765633263431,1.5266,3106.1,3106.0,3.66204518]
[1765633263626,1.5266,3106.1,3106.0,3.21194518]
[1765633265032,0.7679,3106.1,3106.0,5.12804518]
[1765633265439,1.5266,3106.1,3106.0,5.12804518]
[1765633265642,1.5266,3106.1,3106.0,1.92024518]
[1765633266342,1.5266,3106.1,3106.0,0.45424518]
[1765633266840,1.5266,3106.1,3106.0,1.17904518]
[1765633267028,0.7679,3106.1,3106.0,1.92024518]
[1765633267233,1.5266,3106.1,3106.0,5.12804518]
[1765633267435,3.2078,3106.5,3106.0,5.12804518]
[1765633267633,4.7344,3106.5,3106.4,1.466]
[1765633269644,4.7344,3106.5,3106.0,3.66204518]
[1765633269940,1.5266,3106.1,3106.0,5.12804518]
[1765633270244,1.5266,3106.1,3106.0,4.38684518]
[1765633270442,1.5266,3106.1,3106.0,3.66204518]
[1765633270743,1.5266,3106.1,3106.0,4.38684518]
[1765633271539,1.5266,3106.1,3106.0,0.00414518]
[1765633274943,1.5266,3105.8,3105.7,0.72963254]
[1765633275143,1.5266,3105.8,3105.7,0.00483254]
[1765633275851,1.5266,3105.8,3105.7,0.00760314]
[1765633278246,1.5266,3105.8,3105.7,0.73240314]
[1765633278442,1.5266,3105.8,3105.7,1.47360314]
[1765633278849,1.5266,3105.8,3105.7,0.73240314]
[1765633279953,3.2078,3106.3,3105.7,1.47360314]
[1765633280142,0.7679,3105.8,3105.7,1.47360314]
[1765633282352,1.5266,3105.8,3105.7,0.73240314]
[1765633282653,1.5266,3105.8,3105.7,0.00760314]
[1765633283550,1.5266,3105.8,3105.7,0.72080314]
[1765633288052,1.5266,3105.8,3105.7,0.00760314]
[1765633288254,1.5266,3105.8,3105.7,0.74270314]
[1765633288757,1.5266,3105.8,3105.7,1.46210314]
[1765633292548,0.7679,3105.8,3105.7,1.46210314]
[1765633293855,1.5137,3105.8,3105.7,1.46210314]
[1765633294563,1.5137,3105.8,3105.7,0.74270314]
[1765633295656,1.5137,3105.8,3105.7,0.00760314]
[1765633296265,1.5137,3105.8,3105.7,0.74270314]
[1765633296565,1.5137,3105.8,3105.7,0.00760314]
[1765633299265,1.5137,3105.8,3105.7,0.74270314]
[1765633303558,1.5137,3105.8,3105.7,1.46210314]
[1765633305065,0.7679,3105.8,3105.7,1.46210314]
[1765633305370,1.5137,3105.8,3105.7,0.00760314]
[1765633307069,1.5137,3105.8,3105.7,0.74270314]
[1765633308065,1.5137,3105.8,3105.7,0.00760314]
[1765633309566,1.5474,3105.5,3105.4,2.88113293]
[1765633309763,2.61166375,3105.5,3105.4,2.88113293]
[1765633310569,2.61166375,3105.5,3105.4,2.88435323]
[1765633312680,2.51526375,3105.5,3105.4,2.88435323]
[1765633313571,0.7052,3105.5,3105.4,4.33885323]
[1765633313774,1.451,3105.6,3105.5,1.9156]
[1765633314180,1.451,3105.6,3105.5,1.1962]
[1765633314477,1.451,3105.6,3105.5,0.4611]
[1765633315079,1.451,3105.6,3105.5,1.1962]
[1765633315779,0.96773901,3105.9,3105.5,1.9261]
[1765633315981,0.7277,3105.6,3105.5,2.99057406]
[1765633316682,0.7277,3105.6,3105.5,1.9261]
[1765633318982,1.12869901,3106.0,3105.8,1.4399]
[1765633319278,1.79217406,3105.9,3105.8,1.4399]
[1765633319677,2.49647406,3105.9,3105.8,1.4399]
[1765633319874,2.49647406,3105.9,3105.8,0.71]
[1765633320995,0.7277,3105.6,3105.5,2.96547406]
[1765633322093,0.7277,3106.0,3105.9,1.4399]
[1765633322294,0.7277,3106.0,3105.9,2.50437406]
[1765633323096,3.9355,3106.1,3106.0,1.8895]
[1765633324298,4.6398,3106.1,3106.0,1.8895]
[1765633324502,4.6398,3106.1,3106.0,1.1596]
[1765633327498,4.6398,3106.1,3106.0,0.4496]
[1765633328304,4.6398,3106.1,3106.0,1.1596]
[1765633328603,4.6398,3106.1,3106.0,0.4496]
[1765633329205,4.6398,3106.1,3106.0,1.1596]
[1765633330703,0.7277,3105.6,3105.5,3.6689]
[1765633330909,1.432,3105.6,3105.5,6.17327406]
[1765633331705,0.7277,3105.6,3105.5,6.17327406]
[1765633332408,1.06447406,3106.1,3105.5,6.17327406]
[1765633332610,1.432,3105.8,3105.7,2.50437406]
[1765633333002,3.2078,3106.2,3106.1,0.71]
[1765633333202,3.9355,3106.2,3106.1,2.50437406]
[1765633333804,4.6398,3106.2,3106.1,1.4399]
[1765633334008,1.432,3106.1,3106.0,1.1596]
[1765633334610,1.432,3106.1,3106.0,1.8895]
[1765633338015,1.432,3106.1,3106.0,2.95397406]
[1765633338817,1.432,3106.1,3106.0,1.8895]
[1765633339114,1.432,3105.7,3105.6,2.50437406]
[1765633339318,1.432,3105.7,3105.6,1.4399]
[1765633339811,1.432,3105.7,3105.6,2.50437406]
[1765633342919,0.7277,3105.7,3105.6,2.50437406]
[1765633343213,1.4594,3105.7,3105.6,2.50412793]
[1765633346721,0.7277,3105.7,3105.6,2.50412793]
[1765633350118,3.2078,3106.1,3106.0,0.4387]
[1765633350321,4.7096,3106.1,3106.0,1.1818]
[1765633350522,4.7096,3106.1,3106.0,1.9346]
[1765633351916,5.67650818,3106.1,3106.0,1.9346]
[1765633352321,1.5018,3105.7,3105.6,2.56012793]
[1765633352527,1.5018,3105.7,3105.6,1.4959]
[1765633353322,0.7386,3105.7,3105.6,1.4959]
[1765633353519,4.27202793,3106.1,3106.0,0.7431]
[1765633353726,4.7096,3106.1,3106.0,1.9346]
[1765633355028,4.7096,3106.1,3106.0,1.1818]
[1765633357227,4.7096,3106.1,3106.0,1.9346]
[1765633358229,3.9464,3106.1,3106.0,1.9346]
[1765633359132,4.7096,3106.1,3106.0,1.9346]
[1765633359333,3.9464,3106.1,3106.0,1.9346]
[1765633360824,4.7096,3106.1,3106.0,1.9346]
[1765633361028,4.7096,3106.1,3106.0,1.1818]
[1765633361541,0.7386,3106.1,3106.0,1.9346]
[1765633364343,2.56602793,3106.4,3106.3,0.7431]
[1765633364549,3.53280458,3106.4,3106.3,0.7431]
[1765633365941,0.7386,3106.1,3106.0,1.9346]
[1765633367048,1.5018,3106.1,3106.0,1.9346]
[1765633368340,0.7386,3106.1,3106.0,1.9346]
[1765633369249,1.5018,3106.1,3106.0,1.9346]
[1765633374452,2.56602793,3106.1,3106.0,0.4387]
[1765633375951,1.5018,3106.1,3106.0,0.4387]
[1765633376255,1.5018,3106.1,3106.0,1.91]
[1765633376857,1.5018,3106.1,3106.0,1.2095]
[1765633377848,3.913,3106.3,3106.2,0.7708]
[1765633378053,5.63978284,3106.3,3106.2,1.4713]
[1765633380661,5.63978284,3106.3,3106.2,0.7708]
[1765633381562,5.63978284,3106.3,3106.2,1.4713]
[1765633385758,0.7052,3106.3,3106.2,1.4713]
[1765633386764,1.4635,3106.1,3106.0,1.91]
[1765633387259,1.4635,3106.1,3106.0,0.4387]
[1765633387260,4.6713,3106.1,3106.0,0.4387]
[1765633387468,0.7052,3105.6,3105.5,1.9324]